Cogmind - Beta 10.2 @@@ ROGUE MODE // 2022.01.12 @ 23:28:45 Player: albenzo Result: Destroyed by G-50 Soldier with Heavy Laser Performance ------------- Evolutions (4) 2000 Regions Visited (11) 2200 Robots Destroyed (102) 510 Value Destroyed (4251) 4251 Prototype IDs (31) 620 Alien Tech Used (0) 0 Bonus (1567) 1567 TOTAL SCORE: 11148 Bonus ------- High Alert Combat Kills 262 Follower Combat Kills 123 Entered Garrisons 400 Used RIF Installer 500 Aligned with FarCom 300 Friendly Fire -18 Cogmind --------- Core Integrity 0/850 Matter 96/300 Energy 100/100 System Corruption 3% Temperature Cool (9) Movement Core (1350) Ox26 Location -6/Factory Parts ------- > --- POWER (1) -------- (None) > --- PROPULSION (3) --- (None) > --- UTILITY (8) ------ Large Storage Unit Large Storage Unit Large Storage Unit High-capacity Storage Unit Relay Coupler [Sentry] (3) > --- WEAPON (3) ------- (None) > --- INVENTORY (30) --- Light Deuterium Engine Cooled Deuterium Engine Flexi-carbon Leg Flexi-carbon Leg Armored Leg Enhanced Optical Array Relay Coupler [ARC] (12) Relay Coupler [Swarmer] (37) Relay Coupler [Duelist] (25) High-powered Shock Rifle High-powered Shock Rifle High-powered Shock Rifle High-powered Shock Rifle Autogun Peak State ------------ > --- POWER ------------ Light Antimatter Reactor > --- PROPULSION ------- Armored Wheel Armored Huge Wheel > --- UTILITY ---------- Advanced Heat Sink Large Storage Unit Large Storage Unit Large Storage Unit Hardened Medium Armor Plating Hardened Medium Armor Plating System Shield Relay Coupler [Sentry] > --- WEAPON ----------- Autogun Remote Datajack Longsword +1 > --- INVENTORY -------- Flexi-carbon Leg Flexi-carbon Leg Armored Wheel Armored Wheel Armored Wheel Advanced Heat Sink High-capacity Storage Unit Enhanced Optical Array Relay Coupler [NC] Relay Coupler [NC] Relay Coupler [ARC] Relay Coupler [Swarmer] Relay Coupler [Swarmer] Relay Coupler [Duelist] Relay Coupler [Sentry] Relay Coupler [Hunter] Neutron Cannon Neutron Cannon Heavy Missile Launcher Remote Datajack [Rating: 59] Favorites ----------- Power Ion Engine Engine Ion Engine Power Core Light Nuclear Core Reactor Light Antimatter Reactor Propulsion Armored Wheel Treads Light Treads Leg Aluminum Leg Wheel Armored Wheel Utility Large Storage Unit Device Advanced Heat Sink Storage Large Storage Unit Processor Target Analyzer Hackware Hacking Suite Protection Hardened Medium Armor Plating Weapon Gauss Rifle Energy Gun Medium Laser Energy Cannon Neutron Cannon Ballistic Gun Gauss Rifle Launcher Heavy Missile Launcher Special Weapon Remote Datajack Slashing Weapon Longsword +1 Build | -11 -10 -10 -10 -9 -8 -7 -7 -7 -6 -6 -6 ------- Run | Scr Mat Min Exi Min Mat Fac Gar Fac Fac Gar Fac Slots Evolved 8 | . . . . . 4 2 . . 2 . . Power . | . . . . . . . . . . . . Propulsion 1 | . . . . . 1 . . . . . . Utility 6 | . . . . . 2 2 . . 2 . . Weapon 1 | . . . . . 1 . . . . . . Parts Attached 180 | 8 7 2 . 4 57 4 21 18 10 19 30 Power 18 | 1 1 . . . 6 . 3 1 . 4 2 Engine 10 | 1 1 . . . 3 . . 1 . 2 2 Core 7 | . . . . . 3 . 3 . . 1 . Reactor 1 | . . . . . . . . . . 1 . Propulsion 32 | 4 1 . . . 14 . 4 3 1 . 5 Treads 1 | 1 . . . . . . . . . . . Leg 18 | 2 1 . . . 14 . 1 . . . . Wheel 13 | 1 . . . . . . 3 3 1 . 5 Hover . | . . . . . . . . . . . . Flight . | . . . . . . . . . . . . Utility 54 | 1 2 . . . 16 4 1 4 6 7 13 Device 8 | . . . . . 4 1 . . . 1 2 Storage 17 | 1 2 . . . 4 . 1 3 3 . 3 Processor 1 | . . . . . 1 . . . . . . Hackware 12 | . . . . . 1 2 . 1 1 2 5 Protection 16 | . . . . . 6 1 . . 2 4 3 Artifact . | . . . . . . . . . . . . Weapon 76 | 2 3 2 . 4 21 . 13 10 3 8 10 Energy Gun 16 | 2 3 1 . 2 8 . . . . . . Energy Cannon 4 | . . . . . . . . . . . 4 Ballistic Gun 24 | . . . . . 6 . 6 6 1 3 2 Ballistic Cannon . | . . . . . . . . . . . . Launcher 11 | . . 1 . 2 3 . 2 . . 2 1 Special Weapon 3 | . . . . . . . . . 1 1 1 Impact Weapon . | . . . . . . . . . . . . Slashing Weapon 18 | . . . . . 4 . 5 4 1 2 2 Piercing Weapon . | . . . . . . . . . . . . Special Melee Weapon . | . . . . . . . . . . . . Unidentified Prototypes 1 | . . . . . . . . . . . 1 Parts Lost 38 | . 2 . . . 4 . 3 1 . 10 18 Power 6 | . . . . . 1 . . 1 . 3 1 Propulsion 6 | . 1 . . . . . . . . . 5 Utility 12 | . . . . . 2 . . . . 4 6 Weapon 14 | . 1 . . . 1 . 3 . . 3 6 Highest Loss Streak 11 | . 2 . . . 1 . 3 1 . 7 11 Average Slot Usage (%) 98 | . 98 100 100 100 99 99 99 99 95 90 92 Engine 7 | . 13 14 14 14 5 7 1 5 6 3 5 Core 1 | . . . . . 3 . 5 1 . . . Leg 14 | . 28 28 28 28 26 23 10 . . . . Wheel 9 | . . . . . . . 12 22 15 13 17 Device 2 | . . . . . 4 . . . . 3 7 Storage 21 | . 27 28 28 28 19 15 22 23 20 20 17 Processor 1 | . . . . . 4 7 7 1 . . . Hackware 10 | . . . . . 2 14 15 21 26 16 19 Protection 2 | . . . . . 5 7 . . 6 10 5 Energy Gun 8 | . 27 24 28 25 8 . . . . . . Ballistic Gun 11 | . . . . . 16 23 17 21 15 5 1 Slashing Weapon 1 | . . . . . 1 . 4 1 . 5 4 Naked Turns . | . . . . . . . . . . . . Heaviest Build 114 | 12 42 43 42 44 76 58 66 83 91 87 114 Greatest Support 45 | 20 20 20 20 20 43 43 45 36 40 40 40 Greatest Overweight (x) 3 | . 2 2 2 2 2 1 1 2 2 2 3 Average Overweight (x) 1 | . 1 2 2 2 1 1 1 1 1 1 2 Largest Inventory Capacity 30 | 6 16 16 16 16 28 16 22 24 24 22 30 Average Capacity 19 | 5 15 16 16 16 16 16 21 23 22 22 21 Most Carried 24 | 6 16 16 16 16 17 16 22 24 24 22 22 Average Carried 18 | 3 14 16 15 16 15 14 20 23 22 20 17 Final Capacity 30 | 6 16 16 16 16 16 16 22 24 22 22 30 Final Carried 24 | 6 16 16 16 16 16 15 21 24 22 22 14 Class Distribution -------------------- 25% | Mutant 21% | Bothacker-Mutant 18% | Bothacker-Skirmisher 14% | Skirmisher 4% | Scavenger-Skirmisher 4% | Scavenger-Mutant 4% | Hauler-Skirmisher Dominant Class ---------------- Mutant | -10/Materials Mutant | -10/Mines Mutant | -10/Exiles Mutant | -9/Mines Skirmisher | -8/Materials Hacker-Skirmisher | -7/Factory Scavenger-Mutant | -7/Garrison Bothacker-Skirmisher | -7/Factory Bothacker-Mutant | -6/Factory Bothacker-Mutant | -6/Garrison Bothacker-Mutant | -6/Factory Resources | -11 -10 -10 -10 -9 -8 -7 -7 -7 -6 -6 -6 ----------- Run | Scr Mat Min Exi Min Mat Fac Gar Fac Fac Gar Fac Matter Collected 2790 | 204 121 12 . 111 829 . 493 189 . 428 403 Remotely . | . . . . . . . . . . . . Salvage Created 4245 | . 173 11 . 138 1289 . 905 269 . 837 623 Parts 192 | . 4 . . 15 63 . 39 20 . 25 26 Haulers Intercepted . | . . . . . . . . . . . . Recyclers Shooed 4 | . . . . 1 . . . . . . 3 Parts Field Recycled . | . . . . . . . . . . . . Retrieved Matter . | . . . . . . . . . . . . Parts Self-Destructed . | . . . . . . . . . . . . Prevented . | . . . . . . . . . . . . Kills | -11 -10 -10 -10 -9 -8 -7 -7 -7 -6 -6 -6 ------- Run | Scr Mat Min Exi Min Mat Fac Gar Fac Fac Gar Fac Combat Hostiles Destroyed 88 | . 4 3 . 7 31 . 17 5 . 14 7 Melee 32 | . . . . . 17 . 4 4 . 5 2 Guns 18 | . 4 . . . 4 . 7 1 . 2 . Cannons 3 | . . . . . . . . . . . 3 AOE 34 | . . 3 . 7 9 . 6 . . 7 2 Classes Destroyed 13 | . 2 1 . 4 3 . 2 . . . 1 Worker 1 | . . . . . . . . . . . 1 Builder 8 | . . . . 2 3 . . . . . 3 Tunneler 1 | . . . . 1 . . . . . . . Recycler 4 | . . . . 1 1 . . . . . 2 Operator 2 | . 1 . . . . . . . . . 1 Watcher 1 | . . . . . 1 . . . . . . Swarmer 26 | . . . . 4 7 . 7 . . 8 . Grunt 43 | . 4 . . 3 18 . 6 . . 6 6 Duelist 1 | . . . . . 1 . . . . . . Sentry 9 | . . . . . 5 . 2 2 . . . Hunter 1 | . . . . . . . 1 . . . . Programmer 5 | . . . . . . . 1 3 . . 1 Assembled 3 | . . 3 . . . . . . . . . Best Kill Streak 7 | . 2 3 . 7 6 . 7 1 . 7 6 Combat Bots Only 7 | . 2 3 . 5 5 . 7 1 . 7 3 Max Kills in Single Turn 4 | . 1 3 . 3 4 . 3 1 . 3 2 Gunslinging 1 | . . . . . . . 1 . . . . Exploded 3 | . . 3 . 3 3 . 3 . . 3 1 Melee 1 | . . . . . 1 . 1 1 . 1 1 Uniques/NPCs Destroyed . | . . . . . . . . . . . . Combat | -11 -10 -10 -10 -9 -8 -7 -7 -7 -6 -6 -6 -------- Run | Scr Mat Min Exi Min Mat Fac Gar Fac Fac Gar Fac Damage Taken 7521 | . 257 . . 65 1188 . 1088 213 105 2008 2597 Core 1330 | . 50 . . 42 193 . 143 39 6 296 561 Absorbed by Shields . | . . . . . . . . . . . . Core Remaining (%) 75 | 100 . . . 63 64 . . 74 . . . Volleys Fired 166 | . 21 2 . 7 31 . 18 3 6 18 60 Largest 3 | . 2 2 . 2 3 . 3 3 1 3 3 Hottest 219 | . 90 115 . 63 171 . 89 78 30 78 219 Shots Fired 298 | . 42 4 . 8 74 . 51 8 6 28 77 Gun 176 | . 42 3 . . 64 . 44 8 . 15 . Cannon 37 | . . . . . . . . . . . 37 Launcher 48 | . . 1 . 8 10 . 7 . . 9 13 Special 37 | . . . . . . . . . 6 4 27 Kinetic 71 | . . . . . 4 . 44 8 . 15 . Thermal 136 | . 36 3 . . 60 . . . . . 37 Explosive 48 | . . 1 . 8 10 . 7 . . 9 13 Electromagnetic 6 | . 6 . . . . . . . . . . Robot Hit Streak 17 | . 9 5 . 2 11 . 11 3 4 16 17 Robot Miss Streak 4 | . 4 . . 3 3 . 3 4 1 3 3 Penetration Max 1 | . . . . . . . 1 . . 1 . Secondary Targets 5 | . . . . . . . 3 . . 2 . Max Gunslinging Chain 1 | . . . . . . . 1 . . 1 . Shots Hit Robots 276 | . 25 3 . 3 92 . 39 14 5 60 35 Core Hits 188 | . 12 7 . 14 53 . 33 8 . 30 31 Critical Hits 10 | . . . . . 4 . 3 1 . 1 1 Critical Kills 4 | . . . . . 1 . 3 . . . . Critical Parts Destroyed 6 | . . . . . 3 . . 1 . 1 1 Melee Attacks 122 | . . . . . 49 . 14 15 1 37 6 Impact . | . . . . . . . . . . . . Slashing 122 | . . . . . 49 . 14 15 1 37 6 Piercing . | . . . . . . . . . . . . Sneak Attacks . | . . . . . . . . . . . . Combat Hostiles . | . . . . . . . . . . . . Follow-up Attacks 1 | . . . . . . . . . . . 1 Damage Inflicted 12988 | . 269 145 . 717 3583 . 1989 567 . 4049 1669 Guns 1837 | . 269 26 . . 582 . 537 68 . 355 . Cannons 453 | . . . . . . . . . . . 453 Explosions 4376 | . . 119 . 717 888 . 562 . . 1090 1000 Melee 6289 | . . . . . 2113 . 890 499 . 2604 183 Ramming 33 | . . . . . . . . . . . 33 Kinetic 1024 | . . . . . 64 . 537 68 . 355 . Thermal 1254 | . 257 26 . . 518 . . . . . 453 Explosive 4287 | . . 119 . 717 888 . 562 . . 1090 911 Electromagnetic 101 | . 12 . . . . . . . . . 89 Impact . | . . . . . . . . . . . . Slashing 6289 | . . . . . 2113 . 890 499 . 2604 183 Piercing . | . . . . . . . . . . . . Highest Corruption 5 | . . . . . 5 . . . . . 3 Average Corruption 4 | . . . . . 4 . . . . . 2 Corruption Purged . | . . . . . . . . . . . . Effects 78 | . . . . . 60 . . . . . 18 Message Errors 14 | . . . . . 12 . . . . . 2 Matter Fused 18 | . . . . . 15 . . . . . 3 Heat Flow Errors 5 | . . . . . 3 . . . . . 2 Energy Discharges 9 | . . . . . 6 . . . . . 3 Parts Rejected 2 | . . . . . 2 . . . . . . Data Loss (minor) 14 | . . . . . 11 . . . . . 3 Data Loss (major) 6 | . . . . . 6 . . . . . . Misfires 2 | . . . . . 2 . . . . . . Targeting Errors 5 | . . . . . 2 . . . . . 3 Weapon Failures 3 | . . . . . 1 . . . . . 2 Overload Shots . | . . . . . . . . . . . . Overflow Damage 865 | . . . . 41 254 . 61 52 . 425 32 Projectiles 22 | . . . . . . . . . . . 22 Explosions 181 | . . . . 41 77 . 8 . . 45 10 Melee 662 | . . . . . 177 . 53 52 . 380 . Knockbacks 1 | . . . . . . . . . . . 1 Impact 1 | . . . . . . . . . . . 1 Kinetic . | . . . . . . . . . . . . Secondary . | . . . . . . . . . . . . Self-Inflicted Damage 146 | . . . . . 32 . 38 . . . 76 Shots 5 | . . . . . 1 . 1 . . . 3 Rammed 2 | . . . . . . . . . . . 2 Targets Rammed 2 | . . . . . . . . . . . 2 Kicked . | . . . . . . . . . . . . Crushed . | . . . . . . . . . . . . Highest Temperature 340 | . 242 67 . 5 340 . 54 5 4 57 136 Average Temperature 72 | . 100 39 . 2 107 . 17 5 2 19 28 Received Heat Transfer 2388 | . 156 . . 9 459 . 210 24 . 618 912 Effects 2 | . 1 . . . 1 . . . . . . Shutdowns 1 | . . . . . 1 . . . . . . Energy Bleed 1 | . 1 . . . . . . . . . . Siege Activations . | . . . . . . . . . . . . Robots Corrupted . | . . . . . . . . . . . . Combat Hostiles . | . . . . . . . . . . . . Parts Fried . | . . . . . . . . . . . . Impact Corruptions . | . . . . . . . . . . . . Robots Melted 1 | . . . . . 1 . . . . . . Combat Hostiles 1 | . . . . . 1 . . . . . . Parts Melted 7 | . 4 . . . 3 . . . . . . Heat Transferred 2449 | . 706 74 . . 1369 . . . . . 300 Parts Sabotaged . | . . . . . . . . . . . . Parts Stolen . | . . . . . . . . . . . . Parts Stripped . | . . . . . . . . . . . . Power Chain Reactions 1 | . . . . . . . . . . . 1 Missiles Intercepted . | . . . . . . . . . . . . Alert | -11 -10 -10 -10 -9 -8 -7 -7 -7 -6 -6 -6 ------- Run | Scr Mat Min Exi Min Mat Fac Gar Fac Fac Gar Fac Peak Influence 886 | . 140 8 . 195 411 173 886 464 454 551 762 Initial 464 | . . 8 . . . 168 121 464 29 164 289 Average 197 | . 32 8 . 59 239 168 530 61 155 329 369 Maximum Alert Level 3 | . . . . . 2 . 3 2 2 2 3 Low Security (%) 61 | 100 100 100 . 100 41 100 14 99 61 10 19 Level 1 23 | . . . . . 46 . 15 . 19 70 49 Level 2 10 | . . . . . 12 . 41 . 19 18 17 Level 3 3 | . . . . . . . 28 . . . 13 Level 4 . | . . . . . . . . . . . . Level 5 . | . . . . . . . . . . . . High Security . | . . . . . . . . . . . . Max Security . | . . . . . . . . . . . . Squads Dispatched 20 | . 2 . . . 5 . . 4 . . 9 Investigation 7 | . 1 . . . 2 . . 1 . . 3 Extermination 4 | . . . . . . . . 3 . . 1 Reinforcement 6 | . 1 . . . 3 . . . . . 2 Assault . | . . . . . . . . . . . . Garrison 3 | . . . . . . . . . . . 3 Intercept . | . . . . . . . . . . . . Construction Impeded 1 | . . . . . . . . . . . 1 Haulers Reinforced . | . . . . . . . . . . . . Stealth | -11 -10 -10 -10 -9 -8 -7 -7 -7 -6 -6 -6 --------- Run | Scr Mat Min Exi Min Mat Fac Gar Fac Fac Gar Fac Distress Signals 3 | . . . . . 2 . . 1 . . . Communications Jammed . | . . . . . . . . . . . . Distress Signals . | . . . . . . . . . . . . Times Spotted 162 | . 10 2 . 7 67 . 21 11 2 18 24 Peak Tracking Total 8 | . 2 3 . 4 8 . 7 3 1 7 5 Tactical Retreats 27 | . 1 . . 1 13 . 6 2 . 3 1 Traps | -11 -10 -10 -10 -9 -8 -7 -7 -7 -6 -6 -6 ------- Run | Scr Mat Min Exi Min Mat Fac Gar Fac Fac Gar Fac Traps Triggered 28 | . . . . . 7 . 8 1 1 3 8 Indirectly 1 | . . . . . . . . . . . 1 Trap Hack Attempts . | . . . . . . . . . . . . Triggered . | . . . . . . . . . . . . Disarmed . | . . . . . . . . . . . . Reprogrammed . | . . . . . . . . . . . . Reused . | . . . . . . . . . . . . Traps Extracted . | . . . . . . . . . . . . Installed . | . . . . . . . . . . . . Triggered . | . . . . . . . . . . . . Machines | -11 -10 -10 -10 -9 -8 -7 -7 -7 -6 -6 -6 ---------- Run | Scr Mat Min Exi Min Mat Fac Gar Fac Fac Gar Fac Machines Disabled 32 | . . . . . . . 2 . . 1 29 Max in Single Turn 5 | . . . . . . . 1 . . 1 5 Garrison Relay 3 | . . . . . . . 2 . . 1 . Machines Sabotaged . | . . . . . . . . . . . . Garrisons Compromised . | . . . . . . . . . . . . Overloaded Fab Kills . | . . . . . . . . . . . . Fab Network Shutdowns 1 | . . . . . . . . . 1 . . Hacking | -11 -10 -10 -10 -9 -8 -7 -7 -7 -6 -6 -6 --------- Run | Scr Mat Min Exi Min Mat Fac Gar Fac Fac Gar Fac Machines Accessed 40 | . 5 . 3 . 12 1 . 12 4 . 3 Terminals 20 | . 3 . . . 8 . . 7 . . 2 Fabricators 4 | . . . . . . . . . 3 . 1 Repair Stations 4 | . 1 . . . 1 . . 2 . . . Recycling Units 4 | . 1 . . . 2 . . 1 . . . Scanalyzers 2 | . . . . . 1 . . 1 . . . Garrison Access 3 | . . . . . . 1 . 1 1 . . Total Hacks 110 | . 13 . 3 . 39 3 . 35 10 . 7 Successful 68 | . 9 . 3 . 20 3 . 22 7 . 4 Failed 42 | . 4 . . . 19 . . 13 3 . 3 Catastrophic 10 | . 1 . . . 3 . . 3 1 . 2 Database Lockouts . | . . . . . . . . . . . . Manual 34 | . 5 . 1 . 13 1 . 14 . . . Terminals 53 | . 5 . . . 21 . . 22 . . 5 Fabricators 10 | . . . . . . . . . 8 . 2 Repair Stations 12 | . 6 . . . 3 . . 3 . . . Recycling Units 10 | . 2 . . . 6 . . 2 . . . Scanalyzers 16 | . . . . . 9 . . 7 . . . Garrison Access 6 | . . . . . . 3 . 1 2 . . Terminal Hacks 20 | . 1 . 3 . 6 . . 8 . . 2 Record 5 | . . . 2 . . . . 2 . . 1 Part Schematic 2 | . 1 . . . . . . 1 . . . Prototype ID Bank 4 | . . . . . 4 . . . . . . Branch Access Points 1 | . . . . . . . . 1 . . . Fabricator Index 1 | . . . . . . . . 1 . . . Unreport Threat 4 | . . . . . 2 . . 2 . . . Recall Investigation 1 | . . . . . . . . 1 . . . Zone Layout 1 | . . . . . . . . . . . 1 EX-Prototype ID Bank 1 | . . . 1 . . . . . . . . Fabricator Hacks 7 | . . . . . . . . . 5 . 2 Network Status 1 | . . . . . . . . . 1 . . Load Schematic 2 | . . . . . . . . . 1 . 1 Build 4 | . . . . . . . . . 3 . 1 Repair Station Hacks 10 | . 6 . . . 2 . . 2 . . . Scan Component 5 | . 3 . . . 1 . . 1 . . . Repair 5 | . 3 . . . 1 . . 1 . . . Recycling Unit Hacks 8 | . 2 . . . 4 . . 2 . . . Process 4 | . 1 . . . 2 . . 1 . . . Report Inventory 4 | . 1 . . . 2 . . 1 . . . Scanalyzer 13 | . . . . . 6 . . 7 . . . Insert Component 7 | . . . . . 3 . . 4 . . . Analyze 6 | . . . . . 3 . . 3 . . . Garrison Access Hacks 5 | . . . . . . 2 . 1 2 . . Unlock Access 2 | . . . . . . 1 . . 1 . . Coupler Status 3 | . . . . . . 1 . 1 1 . . Unauthorized Hacks 5 | . . . . . 2 1 . 2 . . . Terminals 2 | . . . . . . . . 2 . . . Assimilate 1 | . . . . . . . . 1 . . . Operators 1 | . . . . . . . . 1 . . . Fabricators . | . . . . . . . . . . . . Repair Stations . | . . . . . . . . . . . . Recycling Units 2 | . . . . . 2 . . . . . . Reject 2 | . . . . . 2 . . . . . . Scanalyzers . | . . . . . . . . . . . . Garrison Access 1 | . . . . . . 1 . . . . . Watchers 1 | . . . . . . 1 . . . . . Data Cores Recovered . | . . . . . . . . . . . . Used . | . . . . . . . . . . . . Hacking Detections 32 | . 5 . . . 10 1 . 10 4 . 2 Full Trace Events 2 | . . . . . . . . . . . 2 Feedback Events . | . . . . . . . . . . . . Feedback Blocked . | . . . . . . . . . . . . Robot Schematics Acquired . | . . . . . . . . . . . . Robots Built 2 | . . . . . . . . . 2 . . Matter 306 | . . . . . . . . . 306 . . Time 162 | . . . . . . . . . 162 . . Total Robot Build Rating 2 | . . . . . . . . . 2 . . Part Schematics Acquired 7 | . 1 . . . 2 . . 4 . . . Parts Built 2 | . . . . . . . . . 2 . . Matter 358 | . . . . . . . . . 212 . 146 Time 126 | . . . . . . . . . 53 . 73 Total Part Build Rating 12 | . . . . . . . . . 12 . . Parts Repaired 5 | . 3 . . . 1 . . 1 . . . Time 126 | . 84 . . . 26 . . 16 . . . Parts Recycled . | . . . . . . . . . . . . Recycled Matter 649 | . 369 . . . 178 . . 102 . . . Retrieved Matter . | . . . . . . . . . . . . Retrieved Components . | . . . . . . . . . . . . Parts Scanalyzed 5 | . . . . . 2 . . 3 . . . Part Schematics Acquired 5 | . . . . . 2 . . 3 . . . Parts Damaged . | . . . . . . . . . . . . Bothacking | -11 -10 -10 -10 -9 -8 -7 -7 -7 -6 -6 -6 ------------ Run | Scr Mat Min Exi Min Mat Fac Gar Fac Fac Gar Fac Used RIF Installer 1 | . . . . . . . 1 . . . . Robots Hacked 21 | . . . . . . . . . 4 4 13 Non-combat 12 | . . . . . . . . . 3 . 9 Combat 9 | . . . . . . . . . 1 4 4 Robot Hacks Applied 26 | . . . . . . . . . 5 4 17 parse_system 3 | . . . . . . . . . 2 . 1 no_distress 3 | . . . . . . . . . 2 . 1 start_evac 1 | . . . . . . . . . . . 1 map_earth 1 | . . . . . . . . . . . 1 link_fov 8 | . . . . . . . . . . . 8 scatter_targeting 3 | . . . . . . . . . . 2 1 reboot_system 1 | . . . . . . . . . . . 1 formatsys_high 6 | . . . . . . . . . 1 2 3 Relay Couplers Released 12 | . . . . . . . 8 . . 4 . Machine Destruction 12 | . . . . . . . 8 . . 4 . Attached 8 | . . . . . . . . . 1 2 5 Robots Rewired . | . . . . . . . . . . . . Allies Hacked . | . . . . . . . . . . . . Hacks Repelled . | . . . . . . . . . . . . Allies | -11 -10 -10 -10 -9 -8 -7 -7 -7 -6 -6 -6 -------- Run | Scr Mat Min Exi Min Mat Fac Gar Fac Fac Gar Fac Total Allies 8 | . . . . . . . . . 3 2 3 Largest Group 3 | . . . . . . . . . 3 2 2 Highest-Rated Group 70 | . . . . . . . . . 48 58 70 Highest-Rated Ally 41 | . . . . . . . . . 32 29 41 Total Orders . | . . . . . . . . . . . . Ally Attacks 56 | . . . . . . . . . 1 38 17 Total Damage 921 | . . . . . . . . . 51 515 355 Kills 5 | . . . . . . . . . . 3 2 Allies Corrupted 1 | . . . . . . . . . 1 . . Allies Melted . | . . . . . . . . . . . . Intel | -11 -10 -10 -10 -9 -8 -7 -7 -7 -6 -6 -6 ------- Run | Scr Mat Min Exi Min Mat Fac Gar Fac Fac Gar Fac Robot Analysis Total . | . . . . . . . . . . . . Derelict Logs Recovered 1 | . . . . 1 . . . . . . . Drone Launches . | . . . . . . . . . . . . Drone Recoveries . | . . . . . . . . . . . . Exploration | -11 -10 -10 -10 -9 -8 -7 -7 -7 -6 -6 -6 ------------- Run | Scr Mat Min Exi Min Mat Fac Gar Fac Fac Gar Fac Turns Passed 9884 | 70 1032 69 464 784 2469 175 702 1984 494 397 1244 Spaces Moved 5895 | 42 485 25 257 421 1238 81 396 1624 349 195 782 Core 3 | 3 . . . . . . . . . . . Treads 11 | 11 . . . . . . . . . . . Legs 2668 | 27 485 25 257 421 1238 81 134 . . . . Wheels 3213 | 1 . . . . . . 262 1624 349 195 782 Hover . | . . . . . . . . . . . . Flight . | . . . . . . . . . . . . Fastest Speed 50 | 50 120 180 180 180 150 150 100 100 105 105 110 Average Speed 132 | 124 166 180 180 180 151 150 116 108 106 111 112 Slowest Speed 180 | 160 180 180 180 180 180 150 150 110 110 115 120 Overloaded Moves . | . . . . . . . . . . . . Propulsion Burnouts . | . . . . . . . . . . . . Robots Hopped . | . . . . . . . . . . . . Cave-ins Triggered . | . . . . . . . . . . . . Exploration Rate (%) 41 | 3 80 6 61 74 86 5 70 32 8 46 24 Regions Visited 11 Branch Regions 3 Pre-discovered Areas 1 | . . 1 . . . . . . . . . Known Exits Taken 3 | . . . . . 1 1 . . 1 . . Unknown Exits Taken 6 | 1 1 1 1 1 . . . 1 . . . Scrap Searched 1 | . . 1 . . . . . . . . . Spaces Dug 5 | . . . . . . . . 4 1 . . Terrain Destroyed 364 | . . 10 . 70 51 . 22 4 1 18 188 Melee 5 | . . . . . . . . 4 1 . . Projectile 10 | . . . . . . . 2 . . . 8 AOE 349 | . . 10 . 70 51 . 20 . . 18 180 Terrain Rammed . | . . . . . . . . . . . . Walls Destroyed . | . . . . . . . . . . . . Machines Disabled . | . . . . . . . . . . . . Actions | -11 -10 -10 -10 -9 -8 -7 -7 -7 -6 -6 -6 --------- Run | Scr Mat Min Exi Min Mat Fac Gar Fac Fac Gar Fac Total 7598 | 56 674 44 260 439 1731 135 581 1826 473 314 1065 Wait 894 | . 128 16 . 6 287 49 44 126 81 4 153 Move 5882 | 41 484 24 256 420 1237 80 392 1623 349 194 782 Hop . | . . . . . . . . . . . . Pick Up 126 | 7 23 . 2 1 24 . 19 20 10 12 8 Fast Attach 39 | 5 3 . . . 12 1 1 1 2 5 9 Attach 46 | 1 2 . . . 10 3 3 3 2 8 14 Detach 11 | . . . . . 3 2 1 2 1 1 1 Swap 95 | 2 2 2 . 4 35 . 17 14 6 6 7 Drop 115 | . 11 . 2 1 43 . 14 19 15 5 5 Fire 166 | . 21 2 . 7 31 . 18 3 6 18 60 Melee 121 | . . . . . 49 . 14 15 1 37 5 Ram 2 | . . . . . . . . . . . 2 Kick . | . . . . . . . . . . . . Crush . | . . . . . . . . . . . . Escape Stasis 98 | . . . . . . . 58 . . 24 16 Rewire 3 | . . . . . . . . . . . 3 Trap . | . . . . . . . . . . . . Miscellaneous . | . . . . . . . . . . . . Route ------- -11/Scrapyard -10/Materials (discovered 3 exits: [*Mat x2] / [*Min]) -10/Mines -10/Exiles -9/Mines -8/Materials (discovered 3 exits: *Fac x3) -7/Factory -7/Garrison (discovered 2 exits: *Fac x2) -7/Factory (discovered 3 exits: *Fac / *Low x2) -6/Factory -6/Garrison -6/Factory History --------- Turn | Location | Event 10 | -11/Scrapyard | Discovered new exit (range 14) 71 | -11/Scrapyard | Entered Materials 305 | -10/Materials | Build established: Mutant 590 | -10/Materials | Repaired Particle Gun 618 | -10/Materials | Repaired Ion Engine 645 | -10/Materials | Repaired Aluminum Leg 659 | -10/Materials | Discovered new exit (range 16) 850 | -10/Materials | Discovered new exit (range 13) 1044 | -10/Materials | Discovered new exit (range 13) 1103 | -10/Materials | Entered Mines 1104 | -10/Mines | Learned location of Storage (-9) 1111 | -10/Mines | Assembled infested the area 1116 | -10/Mines | Assisted by a Guerilla fighting off Assembled 1164 | -10/Mines | Deemed a non-threat by the Exiles lab entrance 1164 | -10/Mines | Discovered new exit (range 5) 1172 | -10/Mines | Entered Exiles 1221 | -10/Exiles | Met 8R-AWN 1248 | -10/Exiles | Met EX-HEX 1306 | -10/Exiles | Met EX-BIN 1325 | -10/Exiles | Aligned with FarCom system 1327 | -10/Exiles | Given EX-Vault access code 1369 | -10/Exiles | Opened EX-Vault 1380 | -10/Exiles | Found Longsword +1 1455 | -10/Exiles | Warned to stay clear of 0b10 Research branches 1509 | -10/Exiles | Met EX-DEC 1622 | -10/Exiles | Discovered new exit (range 10) 1636 | -10/Exiles | Left Exiles lab with Longsword +1 1636 | -10/Exiles | Entered Mines 1643 | -9/Mines | Received a Rocket Launcher from a helpful Derelict 2393 | -9/Mines | Discovered new exit (range 13) 2420 | -9/Mines | Entered Materials 2420 | -8/Materials | Evolved 4 slots: Propulsion x1, Utility x2, Weapon x1 2421 | -8/Materials | Identified exit to Factory 3006 | -8/Materials | Build established: Skirmisher 3543 | -8/Materials | Repaired Lgt. Armor Plating 3606 | -8/Materials | Discovered exit to Factory (range 10) 4457 | -8/Materials | Discovered exit to Factory (range 4) 4889 | -8/Materials | Entered Factory 4889 | -7/Factory | Evolved 2 slots: Utility x2 5062 | -7/Factory | Identified exit to Garrison 5064 | -7/Factory | Entered Garrison 5140 | -7/Garrison | Garrison Relay disabled 5164 | -7/Garrison | Triggered checkpoint 5209 | -7/Garrison | Triggered checkpoint 5245 | -7/Garrison | Destroyed 7 combat bots 5436 | -7/Garrison | Triggered checkpoint 5468 | -7/Garrison | Garrison Relay disabled 5511 | -7/Garrison | Discovered new exit (range 10) 5520 | -7/Garrison | Attempted to access garrison exit controls, blocked by remote lockdown 5572 | -7/Garrison | Triggered checkpoint 5648 | -7/Garrison | Lost 3 parts (3w) 5749 | -7/Garrison | Discovered new exit (range 8) 5761 | -7/Garrison | Installed Relay Interface Framework 5766 | -7/Garrison | Entered Factory 6153 | -7/Factory | Build established: Bothacker-Skirmisher 6534 | -7/Factory | Repaired Arm. Wheel 7035 | -7/Factory | Discovered new exit (range 15) 7060 | -7/Factory | Identified exit to Lower Caves 7668 | -7/Factory | Discovered new exit (range 9) 7750 | -7/Factory | Entered another Factory area 7750 | -6/Factory | Evolved 2 slots: Utility x2 8009 | -6/Factory | Fabricated R-06 Scavenger (x1) 8056 | -6/Factory | Local fabrication network quarantined 8087 | -6/Factory | Fabricated Neutron Cannon? 8090 | -6/Factory | Fabricated R-06 Scavenger? 8244 | -6/Factory | Identified exit to Garrison 8244 | -6/Factory | Entered Garrison 8258 | -6/Garrison | Triggered checkpoint 8330 | -6/Garrison | Lost 7 parts (2p2u3w) 8350 | -6/Garrison | Triggered checkpoint 8350 | -6/Garrison | Garrison Relay disabled 8409 | -6/Garrison | Lost 3 parts (1p2u) 8562 | -6/Garrison | Triggered checkpoint 8568 | -6/Garrison | Build established: Bothacker-Mutant 8573 | -6/Garrison | Triggered checkpoint 8606 | -6/Garrison | Destroyed 7 combat bots 8631 | -6/Garrison | Discovered new exit (range 8) 8641 | -6/Garrison | Entered Factory 8641 | -6/Factory | Accompanied by 1 ally 8843 | -6/Factory | Garrison activated, responded to threat 8957 | -6/Factory | Lost 3 parts (1n2u) 9657 | -6/Factory | Core integrity fell below 50% 9832 | -6/Factory | Core integrity fell below 20% 9885 | -6/Factory | Destroyed by G-50 Soldier with Heavy Laser Last Messages --------------- 09753_ System corrupted: Heat flow error (+173). 09754_ Neutron Cannon destroyed. 09755_ Slammed into G-50 Soldier. 09755_ G-50 Soldier knocked back. 09756_ Slammed into G-50 Soldier. 09762_ G-50 Soldier destroyed. 09765_ Acquired 54 matter. 09777_ Adv. Heat Sink destroyed. 09783_ O|REB:T 09859_ System corrupted: Matter fused (-5). 09859_ Katana destroyed. 09863_ Adv. Heat Sink destroyed. 09877_ System corrupted: Matter fused (-9). 09879_ Relay Coupler [Swarmer] destroyed. Map ----- +----------------------------------------------------+ | ?????????????????????????????????????????????????? | | ?????????????????????????????????????????????????? | | ?????????????????????????????????????????????????? | | ?????????????????????????????????????????????????? | | ?????????????????????????????????????????????????? | | ?????????????????????????????????????????????????? | | ?????????????????????????????????????????????????? | | ?????????????????????????????????????????????????? | | ?????????????????????????????????????????????????? | | ?????????????????????????????????????????????????? | | ?????????????????????????????????????????????????? | | ?????????????????????????????????????????????????? | | ?????????????????????????????????????????????????? | | ?????????????###+#+??????????????????????????????? | | ?????????????+ #?????????????????????????????? | | ?????????????# #?????????????????????????????? | | ?????????????# #?????????????????????????????? | | ?????????????+ +?????????????????????????????? | | ?????????????# #?????????????????????????????? | | ?????????????# #?????????????????????????????? | | ?????????????# #####################?????????? | | ?????????????# # #?????????? | | ?????????????# # #?????????? | | ?????????????# # #?????????? | | ?????????????# ; #?????????? | | ?????????????# @# #?????????? | | ?????????????# # #?????????? | | ??????######## g # #?????????? | | ??????# # #?????????? | | ??????# # #?????????? | | ??????# # #?????????? | | ??????# # #?????????? | | ??????# # #?????????? | | ??????# #######################+##+#?????????? | | ####### #?????????????????????# ???????????? | | # #?????????????????????# #?????????? | | # #?????????????????????# #?????????? | | """"" # #?????????????????????# #?????????? | | """"" / #?????????????????????" #?????????? | | """"" # #?????????????????????# ?????????? | | """" # #?????????????????????# #????????? | | # #?????????????????????# #????????? | | ! # #?????????????????????? #????????? | | ##+#### #?????????????????????? "????????? | | ?# #??# #?????????????????????? #????????? | | ?# #??# +?????????????????????? #????????? | | ?# #??# #?????????????????????? #????????? | | ?# #??# #?????????????????????? ?????????? | | ## ### #####?????????????????? ???????????? | | ???????????????????????????????? | +----------------------------------------------------+ Best States ------------- Heat Dissipation 75 Energy Generation 21 Energy Capacity 310 Matter Stores 300 Matter Capacity 300 Sight Range 16 Terrain Scan Density 10 Armor Coverage 450 Evasion (%) 40 Target Analysis 5 Recoil Reduction 1 Offensive Hacking 20 Defensive Hacking 10 Relay Coupler Types 71 Relay Coupler Value 3 Item Schematics ----------------- Lrg. Storage Unit | -10/Materials | Hacked Imp. Datajack | -8/Materials | Scanalyzed Adv. Terrain Scanner | -8/Materials | Scanalyzed Arm. Wheel | -7/Factory | Scanalyzed Targeting Computer | -7/Factory | Scanalyzed Adv. Visual Processing Unit | -7/Factory | Scanalyzed Hacking Suite | -7/Factory | Hacked Robot Schematics ------------------ None Fabricated ------------ R-06 Scavenger | x1 | -6/Factory | Preloaded Neutron Cannon | x2 | -6/Factory | Preloaded R-06 Scavenger | x1 | -6/Factory | Preloaded Alien Tech Used ----------------- None Achievements -------------- Assimilation Complete Factory Defaults Challenges ------------ None Game ------ Seed ExplosiveWardroneShifter Manual? 0 Play Time 01:40:13 Cumulative 19.2 hours Start 2022.01.12 @ 21:35:36 End 2022.01.12 @ 23:28:45 Sessions 1 Manual Loads 0 Difficulty Rogue Special Mode None Game No. 15 Rogue 15 Adventurer 0 Explorer 0 Win Type - Total 0 Types 0/0/0/0/0/0/0/0/0 Lore% 36 Gallery% 29 Achievement% 36 Wizard Run 0 Options --------- ASCII 0 Keyboard 1 Movement Vi Keybinds 0 Fullscreen 2 Font 24/Proggy Map View 76x50 Tactical HUD 1 Map Filters NONE Filters NONE Steam 1 RUN: 4f46e306-87d4-4315-9894-793865a547c0